bitfinex/quotes_BTCUSD_20250108
["timestamp","ask_amount","ask_price","bid_price","bid_amount"]
[1736372298261,0.211662,94490.0,94480.0,0.00015105]
[1736372298851,0.12915115,94491.0,94480.0,0.00015105]
[1736372299308,0.211675,94485.0,94480.0,0.00015105]
[1736372301208,0.211664,94489.0,94480.0,0.00015105]
[1736372301409,0.211676,94484.0,94480.0,0.00015105]
[1736372302244,0.211078,94484.0,94480.0,0.00015105]
[1736372302786,0.211664,94489.0,94480.0,0.00015105]
[1736372303195,0.211677,94484.0,94480.0,0.00015105]
[1736372303940,0.12915115,94491.0,94480.0,0.00015105]
[1736372303941,0.173,94490.0,94480.0,0.00015105]
[1736372304155,0.211678,94483.0,94480.0,0.00015105]
[1736372304358,0.211682,94481.0,94480.0,0.00015105]
[1736372304563,0.33898176,94481.0,94480.0,0.00015105]
[1736372305537,0.56538176,94481.0,94480.0,0.00015105]
[1736372306794,0.5779568,94481.0,94480.0,0.00015105]
[1736372307209,0.5799568,94481.0,94480.0,0.00015105]
[1736372307415,0.5819568,94481.0,94480.0,0.00015105]
[1736372307628,0.5779568,94481.0,94480.0,0.00015105]
[1736372307831,0.5829568,94481.0,94480.0,0.00015105]
[1736372308558,0.7304568,94481.0,94480.0,0.00015105]
[1736372310557,0.49598176,94481.0,94480.0,0.00015105]
[1736372310753,0.47298176,94481.0,94480.0,0.00015105]
[1736372311160,0.49598176,94481.0,94480.0,0.00015105]
[1736372311611,0.48898176,94481.0,94480.0,0.00015105]
[1736372311787,0.49398176,94481.0,94480.0,0.00015105]
[1736372312126,0.49598176,94481.0,94480.0,0.00015105]
[1736372312684,0.023,94480.0,94467.0,0.05335104]
[1736372312884,0.211706,94471.0,94467.0,8.544e-05]
[1736372313499,0.423413,94471.0,94467.0,8.544e-05]
[1736372315556,0.15,94468.0,94467.0,8.544e-05]
[1736372315765,0.35589976,94468.0,94467.0,8.544e-05]
[1736372316179,0.45589976,94468.0,94467.0,8.544e-05]
[1736372316387,0.47665888,94468.0,94467.0,8.544e-05]
[1736372317602,0.48365888,94468.0,94467.0,8.544e-05]
[1736372317804,0.48365888,94468.0,94440.0,0.07808543]
[1736372317805,0.173,94462.0,94440.0,0.07808543]
[1736372317983,0.211772,94442.0,94440.0,0.07823682]
[1736372318959,0.21176,94447.0,94440.0,0.07823682]
[1736372319165,0.211771,94442.0,94440.0,0.07823682]
[1736372320202,0.212771,94442.0,94440.0,0.07823682]
[1736372320520,0.211771,94442.0,94440.0,0.07823682]
[1736372322609,0.211771,94442.0,94440.0,0.05623681]
[1736372322807,0.211746,94453.0,94440.0,0.05623681]
[1736372322996,0.0104388,94458.0,94440.0,0.05623681]
[1736372323238,0.211748,94452.0,94440.0,0.05623681]
[1736372323433,0.004,94442.0,94440.0,0.05623681]
[1736372323836,0.211724,94463.0,94441.0,0.1259]
[1736372324200,0.0769,94478.0,94441.0,0.1259]
[1736372324201,0.004,94458.0,94456.0,0.0778]
[1736372324430,0.12915115,94480.0,94456.0,0.0778]
[1736372324816,0.12915115,94480.0,94463.0,0.211722]
[1736372325068,0.12915115,94480.0,94453.0,0.00105858]
[1736372325069,0.21167,94487.0,94464.0,0.10429976]
[1736372325273,0.211679,94483.0,94465.0,0.0778]
[1736372325482,0.211679,94483.0,94466.0,0.10429976]
[1736372325654,0.21167,94487.0,94471.0,0.211703]
[1736372327379,0.002,94480.0,94471.0,0.211703]
[1736372327986,0.211671,94486.0,94471.0,0.211703]
[1736372328643,0.211671,94486.0,94471.0,0.212703]
[1736372328868,0.423342,94486.0,94471.0,0.212703]
[1736372329038,0.423342,94486.0,94471.0,0.211703]
[1736372330880,0.211671,94486.0,94471.0,0.212703]
[1736372331060,0.211681,94482.0,94471.0,0.001]
[1736372331458,0.211681,94482.0,94467.0,0.211714]
[1736372331659,0.211677,94484.0,94471.0,0.001]
[1736372332061,0.423354,94484.0,94471.0,0.001]
[1736372332356,0.423354,94484.0,94469.0,0.211709]
[1736372332560,0.211677,94484.0,94471.0,0.001]
[1736372332761,0.211677,94484.0,94472.0,0.211702]
[1736372332962,0.211677,94484.0,94471.0,0.001]
[1736372333618,0.211677,94484.0,94472.0,0.211702]
[1736372334129,0.12915115,94482.0,94471.0,0.001]
[1736372334333,0.211698,94474.0,94471.0,0.004]
[1736372334463,0.211698,94474.0,94465.0,0.07795139]
[1736372334663,0.211698,94474.0,94472.0,0.001]
[1736372334907,0.211698,94474.0,94472.0,0.004]
[1736372335120,0.211698,94474.0,94472.0,0.001]
[1736372335309,0.12915115,94482.0,94465.0,0.07795139]
[1736372335487,0.211702,94473.0,94465.0,0.07895139]
[1736372335684,0.211693,94477.0,94465.0,0.07895139]
[1736372336199,0.211701,94473.0,94465.0,0.07895139]
[1736372336565,0.211701,94473.0,94471.0,0.003]
[1736372336764,0.211701,94473.0,94465.0,0.07795139]
[1736372337098,0.211701,94473.0,94472.0,0.001]
[1736372337302,0.211685,94480.0,94472.0,0.001]
[1736372337504,0.211672,94486.0,94473.0,0.2117]
[1736372337712,0.001,94473.0,94471.0,0.004]
[1736372337894,0.001,94473.0,94472.0,0.44486014]
[1736372338302,0.211635,94503.0,94492.0,0.081]
[1736372338778,0.42327,94503.0,94492.0,0.081]
[1736372339218,0.211652,94495.0,94492.0,0.081]
[1736372339392,0.12915115,94502.0,94492.0,0.081]
[1736372339596,0.21165,94496.0,94492.0,0.081]
[1736372340749,0.211673,94486.0,94480.0,0.0785]
[1736372341051,0.211673,94485.0,94472.0,0.22959976]
[1736372341349,0.211676,94484.0,94472.0,0.22959976]
[1736372341554,0.211676,94484.0,94473.0,0.2117]
[1736372341992,0.211676,94484.0,94480.0,0.002]
[1736372343138,0.211676,94484.0,94480.0,0.005]
[1736372343770,0.211676,94484.0,94473.0,0.001]
[1736372343771,0.211696,94475.0,94473.0,0.001]
[1736372343989,0.0801,94495.0,94450.0,0.09447727]
[1736372343990,0.12915115,94483.0,94480.0,0.002]
[1736372344194,0.48897976,94482.0,94480.0,0.002]
[1736372344359,0.48897976,94482.0,94480.0,0.003]
[1736372344739,0.48897976,94482.0,94451.0,0.0788]
[1736372344942,0.234716,94466.0,94448.0,0.09447727]
[1736372345112,0.33901576,94466.0,94448.0,0.09447727]
[1736372345318,0.33901576,94466.0,94441.0,0.13832]
[1736372347230,0.34001576,94466.0,94441.0,0.13832]
[1736372347462,0.34101576,94466.0,94441.0,0.13832]
[1736372347653,0.34101576,94466.0,94442.0,0.21282677]
[1736372347654,0.213716,94466.0,94442.0,0.21282677]
[1736372347868,0.212716,94466.0,94446.0,0.211759]
[1736372348723,0.214716,94466.0,94454.0,0.01055527]
[1736372348928,0.214716,94466.0,94464.0,0.0772]
[1736372349132,0.214716,94466.0,94453.0,0.0772]
[1736372349533,0.213716,94466.0,94453.0,0.0772]
[1736372349876,0.212716,94466.0,94453.0,0.0772]
[1736372350071,0.212716,94466.0,94454.0,0.211742]
[1736372350493,0.211714,94468.0,94458.0,0.211733]
[1736372350855,0.211714,94468.0,94465.0,0.00115139]
[1736372351256,0.211714,94468.0,94465.0,0.00015139]
[1736372351626,0.211704,94472.0,94465.0,0.00015139]
[1736372352847,0.211714,94467.0,94465.0,0.00015139]
[1736372353087,0.211704,94472.0,94465.0,0.00015139]
[1736372353275,0.211704,94472.0,94465.0,0.00415139]
[1736372353711,0.12915115,94475.0,94465.0,0.00115139]
[1736372353915,0.211712,94468.0,94465.0,0.00115139]
[1736372355571,0.211708,94470.0,94465.0,0.00115139]
[1736372355765,0.211708,94470.0,94465.0,0.00015139]
[1736372356158,0.211708,94470.0,94465.0,0.00115139]
[1736372356363,0.211705,94471.0,94465.0,0.00115139]
[1736372356722,0.211705,94471.0,94465.0,0.00015139]
[1736372356919,0.211716,94467.0,94465.0,0.00015139]
[1736372357131,0.211716,94467.0,94465.0,0.00415139]
[1736372357540,0.211716,94467.0,94465.0,0.00115139]
[1736372357719,0.211716,94467.0,94465.0,0.00215139]
[1736372357917,0.211705,94471.0,94465.0,0.00215139]
[1736372358258,0.211705,94471.0,94465.0,0.00015139]
[1736372358400,0.211714,94467.0,94465.0,0.00215139]
[1736372359247,0.211714,94467.0,94465.0,0.00315139]
[1736372359479,0.211714,94467.0,94465.0,0.00215139]
[1736372359808,0.211714,94467.0,94465.0,0.00015139]
[1736372360013,0.211705,94471.0,94465.0,0.00015139]
[1736372360413,0.211705,94471.0,94465.0,0.00315139]
[1736372360659,0.211714,94467.0,94465.0,0.00315139]
[1736372360893,0.211714,94467.0,94465.0,0.00015139]
[1736372361022,0.211705,94471.0,94465.0,0.00315139]
[1736372361223,0.211705,94471.0,94465.0,0.00415139]
[1736372361427,0.211705,94471.0,94465.0,0.00115139]
[1736372361657,0.211715,94467.0,94465.0,0.00215139]
[1736372362279,0.211715,94467.0,94465.0,0.00115139]
[1736372362660,0.211715,94467.0,94465.0,0.00215139]
[1736372362892,0.211705,94471.0,94465.0,0.00215139]
[1736372363391,0.42341,94471.0,94465.0,0.00215139]
[1736372363579,0.211705,94471.0,94465.0,0.00215139]
[1736372363808,0.211705,94471.0,94465.0,0.00415139]
[1736372363983,0.211705,94471.0,94465.0,0.00315139]
[1736372364380,0.211705,94471.0,94465.0,0.00115139]
[1736372366044,0.211715,94467.0,94465.0,0.00115139]
[1736372366669,0.023,94466.0,94465.0,0.00115139]
[1736372367071,0.211715,94467.0,94465.0,0.00115139]
[1736372367224,0.211682,94482.0,94466.0,0.211716]
[1736372367423,0.12915115,94490.0,94477.0,0.211691]
[1736372367768,0.211686,94480.0,94472.0,0.02709999]
[1736372368020,0.12915115,94480.0,94472.0,0.02709999]
[1736372368191,0.211687,94479.0,94466.0,0.211714]
[1736372368444,0.211687,94479.0,94466.0,0.423429]
[1736372368622,0.211687,94479.0,94466.0,0.211714]
[1736372368838,0.12915115,94480.0,94465.0,0.00115139]
[1736372369081,0.211709,94469.0,94465.0,0.00015139]
[1736372369507,0.001,94467.0,94465.0,0.00015139]
[1736372369911,0.211709,94469.0,94465.0,0.00015139]
[1736372370339,0.211709,94469.0,94465.0,0.00115139]
[1736372370715,0.423419,94469.0,94465.0,0.00115139]
[1736372371117,0.423419,94469.0,94465.0,0.00315139]
[1736372372299,0.423419,94469.0,94465.0,0.00015139]
[1736372372632,0.211702,94473.0,94455.0,0.05845138]
[1736372372818,0.211723,94463.0,94455.0,0.05845138]
[1736372374070,0.211723,94463.0,94455.0,0.05945138]
[1736372374281,0.211723,94463.0,94455.0,0.05845138]
[1736372374679,0.211723,94463.0,94455.0,0.05945138]
[1736372375995,0.211723,94463.0,94455.0,0.06045138]
[1736372376513,0.211723,94463.0,94455.0,0.05945138]
[1736372376708,0.211723,94463.0,94455.0,0.06045138]
[1736372377205,0.211723,94463.0,94455.0,0.05945138]
[1736372377433,0.211723,94463.0,94455.0,0.06045138]
[1736372377654,0.211723,94463.0,94455.0,0.05945138]
[1736372378099,0.211723,94463.0,94455.0,0.06145138]
[1736372378738,0.211723,94463.0,94455.0,0.05845138]
[1736372378953,0.211723,94463.0,94455.0,0.05945138]
[1736372379205,0.211723,94463.0,94455.0,0.06145138]
[1736372379434,0.211715,94467.0,94455.0,0.06145138]
[1736372379894,0.211726,94462.0,94455.0,0.003]
[1736372380295,0.211726,94462.0,94455.0,0.002]
[1736372380986,0.211736,94458.0,94450.0,0.001]
[1736372381189,0.423472,94458.0,94450.0,0.001]
[1736372381390,0.12915115,94460.0,94450.0,0.001]
[1736372381992,0.12915115,94460.0,94455.0,0.002]
[1736372382208,0.211728,94461.0,94450.0,0.001]
[1736372382436,0.12915115,94460.0,94450.0,0.002]
[1736372382854,0.211736,94457.0,94450.0,0.001]
[1736372383803,0.211736,94457.0,94450.0,0.002]
[1736372383965,0.211736,94457.0,94450.0,0.001]
[1736372384159,0.211736,94457.0,94450.0,0.003]
[1736372385345,0.211736,94457.0,94450.0,0.004]
[1736372385643,0.09492096,94476.0,94460.0,0.081]
[1736372385886,0.09492096,94476.0,94472.0,0.0466]
[1736372386087,0.09492096,94476.0,94473.0,0.4234]
[1736372386834,0.00015102,94477.0,94473.0,0.4234]
[1736372386835,0.00015102,94477.0,94475.0,0.211696]
[1736372387200,0.001,94476.0,94475.0,0.211696]
[1736372387525,0.003,94476.0,94475.0,0.211696]
[1736372387723,0.001,94476.0,94475.0,0.18969599]
[1736372388330,0.00015102,94477.0,94475.0,0.18969599]
[1736372388700,0.00015102,94477.0,94475.0,0.19069599]
[1736372389886,0.00015102,94477.0,94475.0,0.18969599]
[1736372390303,0.00015102,94477.0,94475.0,0.19069599]
[1736372390930,0.00015102,94477.0,94475.0,0.18969599]
[1736372391325,0.00015102,94477.0,94476.0,0.0010584]
[1736372391526,0.00015102,94477.0,94475.0,0.19075439]
[1736372391752,0.00015102,94477.0,94475.0,0.19175439]
[1736372391966,0.00015102,94477.0,94476.0,0.18729976]
[1736372392175,0.00015102,94477.0,94476.0,0.23589976]
[1736372392874,0.00015102,94477.0,94476.0,0.25704012]
[1736372393277,0.00015102,94477.0,94476.0,0.25904012]
[1736372393572,0.00115102,94477.0,94476.0,0.23789976]
[1736372394155,0.00015102,94477.0,94476.0,0.23789976]
[1736372394574,0.00115102,94477.0,94476.0,0.24089976]
[1736372394783,0.00015102,94477.0,94476.0,0.23789976]
[1736372395345,0.00115102,94477.0,94476.0,0.24089976]
[1736372395663,0.00115102,94477.0,94476.0,0.24289976]
[1736372396225,0.00043747,94477.0,94476.0,0.34719952]
[1736372396558,0.12915115,94500.0,94477.0,0.211691]
[1736372396757,0.01013348,94484.0,94478.0,0.10535804]
[1736372396958,0.01013348,94484.0,94483.0,0.211678]
[1736372398235,0.01013348,94484.0,94483.0,0.213678]
[1736372398411,4.8e-07,94484.0,94483.0,0.6675243]
[1736372398614,0.09492096,94527.0,94520.0,0.211593]
[1736372398919,0.09542571,94527.0,94510.0,0.075]
[1736372399137,0.09542571,94527.0,94524.0,0.42317]
[1736372399343,0.09542571,94527.0,94524.0,0.465487]
[1736372399924,0.00750475,94527.0,94524.0,0.465487]
[1736372400325,0.00050475,94527.0,94524.0,0.465487]
[1736372400532,0.00050475,94527.0,94526.0,0.211581]
[1736372400689,0.00650475,94527.0,94526.0,0.211581]
[1736372400896,0.00650475,94527.0,94524.0,0.217584]
[1736372401093,0.00650475,94527.0,94525.0,0.211584]
[1736372401293,0.00150475,94527.0,94524.0,0.006]
[1736372401498,0.00050475,94527.0,94525.0,0.211584]
[1736372402946,0.00150475,94527.0,94526.0,0.006]
[1736372403144,0.00050475,94527.0,94525.0,0.211584]
[1736372403583,0.00050475,94527.0,94525.0,0.215584]
[1736372403742,0.00050475,94527.0,94525.0,0.211584]
[1736372403949,0.00050475,94527.0,94525.0,0.213584]
[1736372404147,0.00050475,94527.0,94526.0,0.004]
[1736372404633,0.00050475,94527.0,94525.0,0.211584]
[1736372404815,0.00050475,94527.0,94525.0,0.218584]
[1736372405398,0.00050475,94527.0,94525.0,0.216584]
[1736372405578,0.00050475,94527.0,94526.0,0.002]
[1736372407187,0.00150475,94527.0,94526.0,0.007]
[1736372407386,0.00050475,94527.0,94526.0,0.002]
[1736372407598,0.00050475,94527.0,94525.0,0.211584]
[1736372407772,0.00150475,94527.0,94526.0,0.23619976]
[1736372408179,0.001,94527.0,94526.0,0.33619976]
[1736372408366,0.001,94527.0,94526.0,0.50735411]
[1736372408567,0.0658164,94569.0,94558.0,0.211509]
[1736372408803,0.06594993,94562.0,94558.0,0.211509]
[1736372409202,0.06594993,94562.0,94543.0,0.059]
[1736372409427,0.12915115,94560.0,94544.0,0.21744]
[1736372409571,0.06594993,94562.0,94544.0,0.21744]
[1736372410577,0.06594993,94562.0,94554.0,0.211517]
[1736372412653,0.06594993,94562.0,94554.0,0.18951699]
[1736372417368,0.06594993,94562.0,94554.0,0.19051699]
[1736372418432,0.06594993,94562.0,94558.0,0.423018]
[1736372418844,0.06594993,94562.0,94560.0,0.211505]
[1736372419048,0.06594993,94562.0,94555.0,0.211516]
[1736372420096,0.211513,94557.0,94532.0,0.0765]
[1736372420291,0.12915115,94550.0,94526.0,0.0481]
[1736372420519,0.21153,94549.0,94536.0,0.211558]
[1736372420723,0.21153,94549.0,94533.0,0.211564]
[1736372420937,0.12915115,94550.0,94525.0,0.0765]
[1736372421132,0.023,94554.0,94539.0,0.211551]
[1736372421307,0.12915115,94560.0,94526.0,0.10429976]
[1736372421529,0.211508,94559.0,94545.0,0.211538]
[1736372421959,0.003,94549.0,94545.0,0.211538]
[1736372422809,0.003,94549.0,94545.0,0.18953799]
[1736372422986,0.003,94549.0,94547.0,0.211535]
[1736372423186,0.0658164,94569.0,94560.0,0.211505]
[1736372424132,0.0658164,94569.0,94556.0,0.211513]
[1736372424289,0.0658164,94569.0,94545.0,0.05896]
[1736372424489,0.0658164,94569.0,94561.0,0.211503]
[1736372425095,0.211466,94578.0,94561.0,0.211503]
[1736372426891,0.211466,94578.0,94561.0,0.214503]
[1736372427041,0.0758,94579.0,94561.0,0.214503]
[1736372427261,0.211463,94579.0,94561.0,0.214503]
[1736372427454,0.211463,94579.0,94561.0,0.215503]
[1736372427660,0.211463,94579.0,94561.0,0.19350299]
[1736372428014,0.0758,94598.0,94561.0,0.42746022]
[1736372428240,0.211404,94606.0,94593.0,0.21143]
[1736372428442,0.1,94627.0,94561.0,0.31868673]
[1736372428443,0.211376,94618.0,94594.0,0.0422868]
[1736372428650,0.00015124,94602.0,94595.0,0.16325976]
[1736372428856,0.00015124,94602.0,94596.0,0.00105692]
[1736372429110,0.00015124,94602.0,94599.0,0.211418]
[1736372429294,0.00015124,94602.0,94601.0,0.211414]
[1736372429437,0.00015124,94602.0,94601.0,0.31571376]
[1736372430804,0.00115124,94602.0,94601.0,0.32471376]
[1736372431233,0.12915115,94630.0,94614.0,0.211384]
[1736372431456,0.1296551,94630.0,94619.0,0.211372]
[1736372431636,0.1296551,94630.0,94619.0,0.2325092]
[1736372431834,0.00609057,94629.0,94619.0,0.0211372]
[1736372432717,0.00609057,94629.0,94615.0,0.21051919]
[1736372433115,0.00609057,94629.0,94612.0,0.211388]
[1736372433116,0.1296551,94630.0,94612.0,0.211388]
[1736372433319,0.1296551,94630.0,94629.0,0.211351]
[1736372433320,0.00350395,94630.0,94629.0,0.211351]
[1736372433478,0.00050395,94630.0,94629.0,0.2324861]
[1736372433682,0.00050395,94630.0,94625.0,0.211358]
[1736372434164,0.002,94629.0,94625.0,0.211358]
[1736372434327,0.00050395,94630.0,94625.0,0.211358]
[1736372434729,0.00450395,94630.0,94625.0,0.211358]
[1736372434929,0.00450395,94630.0,94617.0,0.211378]
[1736372434930,0.00150395,94630.0,94617.0,0.422756]
[1736372435129,0.00050395,94630.0,94619.0,0.211374]
[1736372435370,0.00613294,94629.0,94619.0,0.211374]
[1736372436277,0.00613294,94629.0,94620.0,0.211371]
[1736372436454,0.002,94629.0,94620.0,0.211371]
[1736372436652,0.00150395,94630.0,94620.0,0.211371]
[1736372436902,0.002,94629.0,94620.0,0.26205766]
[1736372437269,0.00050395,94630.0,94620.0,0.26205766]
[1736372437470,0.002,94629.0,94620.0,0.47342866]
[1736372437668,0.002,94629.0,94625.0,0.211358]
[1736372438527,0.002,94629.0,94625.0,0.422717]
[1736372438685,0.002,94629.0,94627.0,0.211356]
[1736372439221,0.003,94629.0,94627.0,0.211356]
[1736372439436,0.001,94629.0,94627.0,0.211356]
[1736372439842,0.003,94629.0,94627.0,0.211356]
[1736372439996,0.001,94629.0,94627.0,0.211356]
[1736372440370,0.003,94629.0,94628.0,0.02779061]
[1736372440568,0.002,94629.0,94627.0,0.211356]
[1736372440866,0.001,94629.0,94627.0,0.422712]
[1736372441075,0.001,94629.0,94627.0,0.426712]
[1736372441294,0.00050395,94630.0,94627.0,0.422712]
[1736372441675,0.00050395,94630.0,94629.0,0.211351]
[1736372442622,0.00050395,94630.0,94627.0,0.212356]
[1736372442824,0.00050395,94630.0,94627.0,0.001]
[1736372443029,0.00822434,94629.0,94628.0,0.005]
[1736372443237,0.00050395,94630.0,94628.0,0.005]
[1736372443434,0.00050395,94630.0,94627.0,0.001]
[1736372443639,0.00050395,94630.0,94627.0,0.005]
[1736372443861,0.00822363,94629.0,94627.0,0.005]
[1736372444061,0.00050395,94630.0,94625.0,0.211359]
[1736372444323,0.00822069,94628.0,94625.0,0.2536322]
[1736372444533,0.00822363,94629.0,94625.0,0.2536322]
[1736372444753,0.00050395,94630.0,94627.0,0.001]
[1736372445105,0.023,94628.0,94627.0,0.001]
[1736372445304,0.00822363,94629.0,94619.0,0.211373]
[1736372445599,0.00822363,94629.0,94613.0,0.211386]
[1736372445600,0.00824426,94628.0,94620.0,0.0422759]
[1736372445867,0.00050395,94630.0,94625.0,0.002]
[1736372446080,0.00050395,94630.0,94627.0,0.004]
[1736372446289,0.00050395,94630.0,94625.0,0.002]
[1736372446663,0.002,94629.0,94625.0,0.002]
[1736372447059,0.00050395,94630.0,94620.0,0.0422759]
[1736372447260,0.211351,94629.0,94627.0,0.001]
[1736372447453,0.212351,94629.0,94627.0,0.001]
[1736372447851,0.211351,94629.0,94627.0,0.001]
[1736372447989,0.00050395,94630.0,94627.0,0.001]
[1736372449169,0.00050395,94630.0,94623.0,0.211364]
[1736372449573,0.21185295,94630.0,94614.0,0.211383]
[1736372449802,0.21185295,94630.0,94627.0,0.001]
[1736372450011,0.21185295,94630.0,94614.0,0.422767]
[1736372450596,0.42320295,94630.0,94627.0,0.001]
[1736372450979,0.42320295,94630.0,94614.0,0.211383]
[1736372451405,0.42420295,94630.0,94614.0,0.211383]
[1736372451762,0.5523541,94630.0,94614.0,0.211383]
[1736372451964,0.42320295,94630.0,94614.0,0.211383]
[1736372452181,0.21385295,94630.0,94614.0,0.211383]
[1736372452379,0.211353,94628.0,94614.0,0.211383]
[1736372454793,0.211353,94628.0,94618.0,0.211375]
[1736372454996,0.00050395,94630.0,94618.0,0.42275]
[1736372456098,0.00050395,94630.0,94618.0,0.211375]
[1736372456328,0.0082141,94629.0,94618.0,0.211375]
[1736372457337,0.211353,94628.0,94618.0,0.211375]
[1736372457540,0.023,94627.0,94608.0,0.211396]
[1736372457747,0.02978397,94627.0,94612.0,0.211388]
[1736372458059,0.12915115,94620.0,94612.0,0.211388]
[1736372458586,0.00680067,94619.0,94612.0,0.211388]
[1736372459107,0.00680067,94619.0,94600.0,0.01074481]
[1736372459391,0.023,94627.0,94614.0,0.211383]
[1736372459392,0.211358,94626.0,94614.0,0.211383]
[1736372459518,0.12915115,94620.0,94614.0,0.211383]
[1736372459933,0.00678004,94619.0,94614.0,0.211383]
[1736372460401,0.00678004,94619.0,94614.0,0.422767]
[1736372460808,0.023,94627.0,94618.0,0.211375]
[1736372461243,0.00680654,94626.0,94618.0,0.211375]
[1736372461450,0.00680654,94626.0,94624.0,0.211361]
[1736372461665,0.00050395,94630.0,94624.0,0.211361]
[1736372461866,0.00050395,94630.0,94629.0,0.211351]
[1736372462647,0.00050395,94630.0,94629.0,0.18935099]
[1736372463485,0.00250395,94630.0,94629.0,0.18935099]
[1736372465326,0.00350395,94630.0,94629.0,0.18935099]
[1736372465665,0.00150395,94630.0,94629.0,0.18935099]
[1736372465885,0.00150395,94630.0,94629.0,0.19235099]
[1736372466819,0.00150395,94630.0,94629.0,0.003]
[1736372467321,0.00050395,94630.0,94629.0,0.003]
[1736372467589,0.00710435,94630.0,94629.0,0.004]
[1736372467798,0.00050395,94630.0,94629.0,0.004]
[1736372468089,0.08070395,94630.0,94629.0,0.004]
[1736372468249,0.08732203,94630.0,94629.0,0.004]
[1736372469252,0.08732203,94630.0,94629.0,0.001]
[1736372470783,0.211351,94629.0,94616.0,0.21138]
[1736372471188,0.00658862,94628.0,94616.0,0.21138]
[1736372472274,0.211366,94623.0,94607.0,0.30608891]
[1736372472500,0.12915115,94620.0,94611.0,0.21139]
[1736372472800,0.12915115,94620.0,94612.0,0.211389]
[1736372472957,0.00540489,94619.0,94612.0,0.211389]
[1736372473157,0.12915115,94622.0,94608.0,0.211398]
[1736372473361,0.04678169,94622.0,94608.0,0.211398]
[1736372473544,0.12915115,94620.0,94608.0,0.211398]
[1736372473741,0.211387,94613.0,94606.0,0.09469091]
[1736372473952,0.211397,94609.0,94606.0,0.09469091]
[1736372474156,0.21678272,94612.0,94606.0,0.09469091]
[1736372474377,0.00538195,94608.0,94606.0,0.14203637]
[1736372474612,0.02000545,94607.0,94606.0,0.14203637]
[1736372474869,0.23675122,94607.0,94606.0,0.14203637]
[1736372475079,0.02535122,94607.0,94606.0,0.14203637]
[1736372475437,0.02535122,94607.0,94599.0,0.09433962]
[1736372475646,0.00534577,94607.0,94599.0,0.09433962]
[1736372475896,0.12915115,94610.0,94606.0,0.003]
[1736372476095,0.211389,94612.0,94599.0,0.09433962]
[1736372476592,0.211389,94612.0,94606.0,0.001]
[1736372476829,0.12915115,94616.0,94599.0,0.09433962]
[1736372477030,0.1296551,94630.0,94619.0,0.211372]
[1736372477156,0.10429976,94629.0,94600.0,0.04257578]
[1736372477367,0.15,94628.0,94612.0,0.211388]
[1736372477571,0.211358,94626.0,94612.0,0.211388]
[1736372477988,0.023,94626.0,94610.0,0.211393]
[1736372478203,0.21136,94625.0,94604.0,0.211405]
[1736372478599,0.001,94612.0,94611.0,0.288691]
[1736372478799,0.002,94612.0,94611.0,0.288691]
[1736372479003,0.12915115,94621.0,94611.0,0.211391]
[1736372479198,0.211371,94620.0,94611.0,0.211391]
[1736372479406,0.12915115,94621.0,94611.0,0.211391]
[1736372479968,0.12915115,94621.0,94611.0,0.217391]
[1736372480183,0.12915115,94621.0,94611.0,0.213391]
[1736372480991,0.12915115,94621.0,94611.0,0.002]
[1736372480992,0.211371,94620.0,94611.0,0.002]
[1736372481192,0.211374,94619.0,94611.0,0.002]
[1736372481394,0.023,94614.0,94604.0,0.09433962]
[1736372482093,0.211387,94613.0,94611.0,0.001]
[1736372482596,0.211387,94613.0,94596.0,0.422848]
[1736372482838,0.211387,94613.0,94596.0,0.40084799]
[1736372483239,0.211387,94613.0,94600.0,0.211416]
[1736372483416,0.213387,94613.0,94600.0,0.211416]
[1736372483614,0.211399,94608.0,94596.0,0.18942399]
[1736372484224,0.422798,94608.0,94596.0,0.18942399]
[1736372484582,0.211399,94608.0,94592.0,0.211432]
[1736372484783,0.211399,94608.0,94596.0,0.211424]
[1736372485610,0.10429976,94607.0,94596.0,0.001]
[1736372485824,0.023,94598.0,94596.0,0.001]
[1736372486028,0.211423,94597.0,94596.0,0.001]
[1736372486185,0.292123,94597.0,94596.0,0.001]
[1736372487725,0.41942276,94597.0,94596.0,0.001]
[1736372488327,0.211398,94608.0,94571.0,0.211481]
[1736372488533,0.0807,94615.0,94593.0,0.211432]
[1736372488534,0.10429976,94607.0,94593.0,0.211432]
[1736372488773,0.10429976,94607.0,94578.0,0.00015124]
[1736372488774,0.12915115,94600.0,94584.0,0.211451]
[1736372488971,0.211418,94599.0,94584.0,0.211451]
[1736372489163,0.005,94597.0,94588.0,0.211443]
[1736372489576,0.211418,94599.0,94588.0,0.211443]
[1736372489784,0.211427,94595.0,94584.0,0.211451]
[1736372489984,0.12915115,94594.0,94584.0,0.211451]
[1736372490595,0.001,94597.0,94584.0,0.211451]
[1736372490816,0.001,94597.0,94588.0,0.211442]
[1736372491377,0.001,94597.0,94593.0,0.001]
[1736372491530,0.001,94597.0,94588.0,0.211442]
[1736372492121,0.001,94597.0,94584.0,0.211451]
[1736372492321,0.001,94594.0,94584.0,0.211451]
[1736372492523,0.001,94594.0,94584.0,0.422902]
[1736372492804,0.001,94597.0,94584.0,0.211451]
[1736372492937,0.211422,94598.0,94584.0,0.211451]
[1736372493143,0.211425,94596.0,94583.0,0.211452]
[1736372493345,0.26682482,94596.0,94583.0,0.211452]
[1736372493652,0.12915115,94593.0,94583.0,0.211452]
[1736372494263,0.12915115,94593.0,94583.0,0.422906]
[1736372495396,0.55201715,94593.0,94579.0,0.211462]
[1736372495605,0.55201715,94593.0,94578.0,0.00015124]
[1736372495606,0.211451,94585.0,94578.0,0.00015124]
[1736372495810,0.0211451,94584.0,94578.0,0.00015124]
[1736372496350,0.023,94588.0,94578.0,0.00015124]
[1736372496568,0.12915115,94593.0,94578.0,0.00015124]
[1736372496782,0.12915115,94600.0,94587.0,0.211444]
[1736372497005,0.00468887,94592.0,94587.0,0.211444]
[1736372497239,0.12915115,94600.0,94587.0,0.211444]
[1736372497640,0.42754266,94599.0,94583.0,0.211452]
[1736372497840,0.001,94584.0,94583.0,0.18945199]